{"text_format":"3","workbook":"xlsx","n_sheets":2,"sheets":["Обобщен бюджет","Подробни данни за бюджета"],"not_rendered":{"images":1,"defined_names":1},"read":"whole","date_system":"1900"}

{"sheet":"Обобщен бюджет","index":0,"n_rows":28,"n_cols":7,"rows_kept":28}
[{"$nulls":6}," "]
[]
[null,"ОБЩА СУМА ЗА СВАТБЕНИЯ БЮДЖЕТ",{"v":20000,"d":"20,000 лв."}]
[]
[null,"РАЗХОДИ","Разпределение \n%","Отпуснат \nбюджет","Приблизителна \nЦена","Действителен \nРазход"]
[null,"ТържествоРесторант",{"v":0.5,"d":"50%"},{"$f":"Общ_Бюджет_За_Сватбата*'Обобщен бюджет'!$C6","v":{"v":10000,"d":"10,000 лв."}},{"$f":"Таблица_Тържество[[#Totals],[Приблизителна цена]]","v":{"v":0,"d":"0 лв."}},{"$f":"Таблица_Тържество[[#Totals],[Действителен разход]]","v":{"v":0,"d":"0 лв."}}]
[null,"Облекло,",{"v":0.1,"d":"10%"},{"$f":"Общ_Бюджет_За_Сватбата*'Обобщен бюджет'!$C7","v":{"v":2000,"d":"2,000 лв."}},{"$f":"Таблица_Облекло[[#Totals],[Приблизителна цена]]","v":{"v":0,"d":"0 лв."}},{"$f":"Таблица_Облекло[[#Totals],[Действителен разход]]","v":{"v":0,"d":"0 лв."}}]
[null,"Цветя и декорации",{"v":0.1,"d":"10%"},{"$f":"Общ_Бюджет_За_Сватбата*'Обобщен бюджет'!$C8","v":{"v":2000,"d":"2,000 лв."}},{"$f":"Таблица_ЦветяИДекорации[[#Totals],[Приблизителна цена]]","v":{"v":0,"d":"0 лв."}},{"$f":"Таблица_ЦветяИДекорации[[#Totals],[Действителен разход]]","v":{"v":0,"d":"0 лв."}}]
[null,"Музика",{"v":0.1,"d":"10%"},{"$f":"Общ_Бюджет_За_Сватбата*'Обобщен бюджет'!$C9","v":{"v":2000,"d":"2,000 лв."}},{"$f":"Таблица_Музика[[#Totals],[Приблизителна цена]]","v":{"v":0,"d":"0 лв."}},{"$f":"Таблица_Музика[[#Totals],[Действителен разход]]","v":{"v":0,"d":"0 лв."}}]
[null,"Снимки и видео",{"v":0.1,"d":"10%"},{"$f":"Общ_Бюджет_За_Сватбата*'Обобщен бюджет'!$C10","v":{"v":2000,"d":"2,000 лв."}},{"$f":"Таблица_СнимкиИВидео[[#Totals],[Приблизителна цена]]","v":{"v":0,"d":"0 лв."}},{"$f":"Таблица_СнимкиИВидео[[#Totals],[Действителен разход]]","v":{"v":0,"d":"0 лв."}}]
[null,"Услуги и подаръци",{"v":0.03,"d":"3%"},{"$f":"Общ_Бюджет_За_Сватбата*'Обобщен бюджет'!$C11","v":{"v":600,"d":"600 лв."}},{"$f":"Таблица_Подаръци[[#Totals],[Приблизителна цена]]","v":{"v":0,"d":"0 лв."}},{"$f":"Таблица_Подаръци[[#Totals],[Действителен разход]]","v":{"v":0,"d":"0 лв."}}]
[null,"Церемония",{"v":0.02,"d":"2%"},{"$f":"Общ_Бюджет_За_Сватбата*'Обобщен бюджет'!$C12","v":{"v":400,"d":"400 лв."}},{"$f":"Таблица_Церемония[[#Totals],[Приблизителна цена]]","v":{"v":0,"d":"0 лв."}},{"$f":"Таблица_Церемония[[#Totals],[Действителен разход]]","v":{"v":0,"d":"0 лв."}}]
[null,"Канцеларски материали",{"v":0.02,"d":"2%"},{"$f":"Общ_Бюджет_За_Сватбата*'Обобщен бюджет'!$C13","v":{"v":400,"d":"400 лв."}},{"$f":"Таблица_Канцеларски[[#Totals],[Приблизителна цена]]","v":{"v":0,"d":"0 лв."}},{"$f":"Таблица_Канцеларски[[#Totals],[Действителен разход]]","v":{"v":0,"d":"0 лв."}}]
[null,"Венчални халки",{"v":0.02,"d":"2%"},{"$f":"Общ_Бюджет_За_Сватбата*'Обобщен бюджет'!$C14","v":{"v":400,"d":"400 лв."}},{"$f":"Таблица_Сватбени_Пръстени[[#Totals],[Приблизителна цена]]","v":{"v":0,"d":"0 лв."}},{"$f":"Таблица_Сватбени_Пръстени[[#Totals],[Действителен разход]]","v":{"v":0,"d":"0 лв."}}]
[null,"Транспорт",{"v":0.01,"d":"1%"},{"$f":"Общ_Бюджет_За_Сватбата*'Обобщен бюджет'!$C15","v":{"v":200,"d":"200 лв."}},{"$f":"Таблица_Транспорт[[#Totals],[Приблизителна цена]]","v":{"v":0,"d":"0 лв."}},{"$f":"Таблица_Транспорт[[#Totals],[Действителен разход]]","v":{"v":0,"d":"0 лв."}}]
[null,"Общо",{"$f":"SUM(C6:C15)","v":{"v":1,"d":"100%"}},{"$f":"SUM(D6:D15)","v":{"v":20000,"d":"20,000 лв."}},{"v":0,"d":"0 лв."},{"v":0,"d":"0 лв."}]
[]
[null,"ВНОСКИ"]
[null,"Източник на средствата","Участия"]
[null,"Спестявания",{"v":10000,"d":"10,000 лв."}]
[null,"Майка и баща на партньор 1",{"v":4000,"d":"4,000 лв."}]
[null,"Баби и дядовци на партньор 1",{"v":2000,"d":"2,000 лв."}]
[null,"Майка и баща на партньор 2",{"v":4000,"d":"4,000 лв."}]
[null,"Баби и дядовци от партньор 2",{"v":4000,"d":"4,000 лв."}]
[null,"Други",{"v":2000,"d":"2,000 лв."}]
[null,"Общо",{"$f":"SUBTOTAL(109,Таблица_Участия[Участия])","v":{"v":26000,"d":"26,000 лв."}}]
[]
[null,{"$f":"IF(Таблица_Участия[[#Totals],[Участия]]<Общ_Бюджет_За_Сватбата,\"Разлика за изравняване\",\"Налични допълнителни средства\")","v":"Налични допълнителни средства"},{"$f":"IF(Таблица_Участия[[#Totals],[Участия]]<Общ_Бюджет_За_Сватбата,Общ_Бюджет_За_Сватбата-Таблица_Участия[[#Totals],[Участия]],Таблица_Участия[[#Totals],[Участия]]-Общ_Бюджет_За_Сватбата)","v":{"v":6000,"d":"6,000 лв."}}]

{"sheet":"Подробни данни за бюджета","index":1,"n_rows":80,"n_cols":4,"rows_kept":80}
[]
[null,"ТЪРЖЕСТВО В РЕСТОРАНТА","Приблизителна цена","Действителен разход"]
[null,"Място и наемане"]
[null,"Храна и услуги"]
[null,"Напитки"]
[null,"Торта"]
[null,"Разни"]
[null,"Общо",{"$f":"SUBTOTAL(109,Таблица_Тържество[Приблизителна цена])","v":{"v":0,"d":"0.00 лв."}},{"$f":"SUBTOTAL(109,Таблица_Тържество[Действителен разход])","v":{"v":0,"d":"0.00 лв."}}]
[]
[null,"ОБЛЕКЛО","Приблизителна цена","Действителен разход"]
[null,"Смокинг, костюм и/или рокли"]
[null,"Поправки на дрехи"]
[null,"Аксесоар за главата и воал"]
[null,"Аксесоари"]
[null,"Коса и грим"]
[null,"Разни"]
[null,"Общо",{"$f":"SUBTOTAL(109,Таблица_Облекло[Приблизителна цена])","v":{"v":0,"d":"0.00 лв."}},{"$f":"SUBTOTAL(109,Таблица_Облекло[Действителен разход])","v":{"v":0,"d":"0.00 лв."}}]
[]
[null,"ЦВЕТЯ И ДЕКОРАЦИИ","Приблизителна цена","Действителен разход"]
[null,"Аранжировки на цветя за церемонията"]
[null,"Късметчета и кошничка"]
[null,"Възглавница за пръстен"]
[null,"Букети"]
[null,"Бутониери"]
[null,"Букетчета за ръка"]
[null,"Декорации за прием"]
[null,"Осветление"]
[null,"Разни"]
[null,"Общо",{"$f":"SUBTOTAL(109,Таблица_ЦветяИДекорации[Приблизителна цена])","v":{"v":0,"d":"0.00 лв."}},{"$f":"SUBTOTAL(109,Таблица_ЦветяИДекорации[Действителен разход])","v":{"v":0,"d":"0.00 лв."}}]
[]
[null,"МУЗИКА","Приблизителна цена","Действителен разход"]
[null,"Музиканти за церемонията"]
[null,"Музиканти за коктейла"]
[null,"Оркестър за ресторанта, диджей или муз.оформление"]
[null,"Озвучаване или наем на дансинг"]
[null,"Разни"]
[null,"Общо",{"$f":"SUBTOTAL(109,Таблица_Музика[Приблизителна цена])","v":{"v":0,"d":"0.00 лв."}},{"$f":"SUBTOTAL(109,Таблица_Музика[Действителен разход])","v":{"v":0,"d":"0.00 лв."}}]
[]
[null,"СНИМКИ И ВИДЕО","Приблизителна цена","Действителен разход"]
[null,"Снимки"]
[null,"Видеозапис"]
[null,"Допълнителни снимки и албуми"]
[null,"Разни"]
[null,"Общо",{"$f":"SUBTOTAL(109,Таблица_СнимкиИВидео[Приблизителна цена])","v":{"v":0,"d":"0.00 лв."}},{"$f":"SUBTOTAL(109,Таблица_СнимкиИВидео[Действителен разход])","v":{"v":0,"d":"0.00 лв."}}]
[]
[null,"УСЛУГИ И ПОДАРЪЦИ","Приблизителна цена","Действителен разход"]
[null,"Подаръци за добре дошли"]
[null,"Подаръци за парти"]
[null,"Разни"]
[null,"Общо",{"$f":"SUBTOTAL(109,Таблица_Подаръци[Приблизителна цена])","v":{"v":0,"d":"0.00 лв."}},{"$f":"SUBTOTAL(109,Таблица_Подаръци[Действителен разход])","v":{"v":0,"d":"0.00 лв."}}]
[]
[null,"ЦЕРЕМОНИЯ","Приблизителна цена","Действителен разход"]
[null,"Такса"]
[null,"Църковна такса или дарение за църква"]
[null,"Разни"]
[null,"Общо",{"$f":"SUBTOTAL(109,Таблица_Церемония[Приблизителна цена])","v":{"v":0,"d":"0.00 лв."}},{"$f":"SUBTOTAL(109,Таблица_Церемония[Действителен разход])","v":{"v":0,"d":"0.00 лв."}}]
[]
[null,"КАНЦЕЛАРСКИ МАТЕРИАЛИ","Приблизителна цена","Действителен разход"]
[null,"Картички с датата"]
[null,"Покани и RSVPs"]
[null,"Програми"]
[null,"Надписи за място за сядане"]
[null,"Менюта"]
[null,"Бележки за благодарственост"]
[null,"Пощенски разходи"]
[null,"Разни"]
[null,"Общо",{"$f":"SUBTOTAL(109,Таблица_Канцеларски[Приблизителна цена])","v":{"v":0,"d":"0.00 лв."}},{"$f":"SUBTOTAL(109,Таблица_Канцеларски[Действителен разход])","v":{"v":0,"d":"0.00 лв."}}]
[]
[null,"ВЕНЧАЛНИ ХАЛКИ","Приблизителна цена","Действителен разход"]
[null,"Венчални халки"]
[null,"Аксесоари за пръстените"]
[null,"Общо",{"$f":"SUBTOTAL(109,Таблица_Сватбени_Пръстени[Приблизителна цена])","v":{"v":0,"d":"0.00 лв."}},{"$f":"SUBTOTAL(109,Таблица_Сватбени_Пръстени[Действителен разход])","v":{"v":0,"d":"0.00 лв."}}]
[]
[null,"ТРАНСПОРТ","Приблизителна цена","Действителен разход"]
[null,"Основна кола наем"]
[null,"Коли под наем на гостите"]
[null,"Транспорт за гости извън града"]
[null,"Паркинг с обслужване"]
[null,"Разни"]
[null,"Общо",{"$f":"SUBTOTAL(109,Таблица_Транспорт[Приблизителна цена])","v":{"v":0,"d":"0.00 лв."}},{"$f":"SUBTOTAL(109,Таблица_Транспорт[Действителен разход])","v":{"v":0,"d":"0.00 лв."}}]